Cogmind - Beta 14 @@@ ROGUE MODE // 2025.03.11 @ 13:38:07 Player: canerib Result: Destroyed by G-50 Soldier with Heavy Laser Performance ------------- Evolutions (4) 2000 Regions Visited (8) 1600 Robots Destroyed (55) 275 Value Destroyed (2532) 2532 Prototype IDs (3) 60 Alien Tech Used (0) 0 Bonus (986) 986 TOTAL SCORE: 7453 Bonus ------- High Alert Combat Kills 112 Follower Combat Kills 528 Entered DSFs 500 Friendly Fire -154 Cogmind --------- Core Integrity 0/850 Matter 250/300 Energy 89/100 System Corruption 0% Temperature Cool (18) Movement Core (50) Location -6/Cetus Parts ------- > --- POWER (2) -------- (None) > --- PROPULSION (6) --- (None) > --- UTILITY (5) ------ (None) > --- WEAPON (2) ------- (None) > --- INVENTORY (5) ---- Authchip [R/Combat] Particle Gun Mining Laser Peak State ------------ > --- POWER ------------ Fusion Compressor Fusion Compressor > --- PROPULSION ------- Flexi-carbon Leg Flexi-carbon Leg Flexi-carbon Leg Flexi-carbon Leg Flexi-carbon Leg Flexi-carbon Leg > --- UTILITY ---------- Advanced Heat Sink Large Storage Unit Improved Sensor Array Improved Signal Interpreter Transmission Jammer > --- WEAPON ----------- Gatling Laser Gatling Laser > --- INVENTORY -------- Light Nuclear Core Light Angular Momentum Engine Improved Carbon-fiber Leg Improved Carbon-fiber Leg Improved Carbon-fiber Leg Improved Carbon-fiber Leg Flexi-carbon Leg Improved Heat Sink Authchip [R/Combat] Particle Gun Grenade Launcher Mining Laser [Rating: 68] Favorites ----------- Power Ion Engine Engine Ion Engine Power Core Light Nuclear Core Propulsion Carbon-fiber Leg Leg Carbon-fiber Leg Utility Large Storage Unit Device Advanced Heat Sink Storage Large Storage Unit Processor Improved Signal Interpreter Hackware Hacking Suite Protection Layered Medium Armor Plating Weapon Heavy Assault Rifle Energy Gun Gatling Laser Energy Cannon Heavy Plasma Cannon Ballistic Gun Heavy Assault Rifle Ballistic Cannon Magnetic Acceleration Cannon Launcher Grenade Launcher Special Weapon Mining Laser Build | -11 -10 -9 -8 -7 -7 -6 -6 -6 ------- Run | Yrd Mat Mat Mat Fac DSF Fac Ext Cet Slots Evolved 8 | . . 2 2 2 . 2 . . Power 1 | . . . . 1 . . . . Propulsion 4 | . . . 2 1 . 1 . . Utility 3 | . . 2 . . . 1 . . Weapon . | . . . . . . . . . Parts Attached 133 | 8 4 15 23 6 23 7 36 11 Power 20 | 1 . 2 1 2 5 2 6 1 Engine 11 | 1 . 2 . . 1 1 5 1 Core 9 | . . . 1 2 4 1 1 . Reactor . | . . . . . . . . . Propulsion 46 | 2 1 4 4 2 12 1 13 7 Treads . | . . . . . . . . . Leg 46 | 2 1 4 4 2 12 1 13 7 Wheel . | . . . . . . . . . Hover . | . . . . . . . . . Flight . | . . . . . . . . . Utility 27 | 3 1 2 5 2 1 4 7 2 Device 20 | 2 . 2 4 1 1 4 4 2 Storage 3 | 1 1 . 1 . . . . . Processor 1 | . . . . 1 . . . . Hackware 1 | . . . . . . . 1 . Protection 2 | . . . . . . . 2 . Artifact . | . . . . . . . . . Weapon 40 | 2 2 7 13 . 5 . 10 1 Energy Gun 15 | 1 . 3 4 . 2 . 4 1 Energy Cannon 1 | . . . . . . . 1 . Ballistic Gun 15 | 1 1 2 8 . 3 . . . Ballistic Cannon 3 | . . . . . . . 3 . Launcher 2 | . . 1 . . . . 1 . Special Weapon 4 | . 1 1 1 . . . 1 . Impact Weapon . | . . . . . . . . . Slashing Weapon . | . . . . . . . . . Piercing Weapon . | . . . . . . . . . Special Melee Weapon . | . . . . . . . . . Unidentified Prototypes 2 | . . . 1 . 1 . . . Corrupted Parts 1 | . . 1 . . . . . . System Corruption 1 | . . 1 . . . . . . Parts Lost 55 | . . 5 6 . 7 . 19 18 Power 9 | . . 1 . . 3 . 2 3 Propulsion 22 | . . 2 2 . 2 . 7 9 Utility 12 | . . . 3 . . . 5 4 Weapon 12 | . . 2 1 . 2 . 5 2 Highest Loss Streak 12 | . . 5 5 . 4 . 7 12 To Critical Strikes 7 | . . . . . . . 1 6 Average Slot Usage (%) 93 | . 100 87 97 96 93 100 94 66 Engine 7 | . 14 10 2 . 4 4 9 4 Core 3 | . . . 6 15 8 7 2 5 Leg 32 | . 28 21 35 34 35 40 37 27 Device 19 | . 14 22 25 19 14 20 12 15 Storage 8 | . 14 11 9 7 7 6 6 5 Processor 2 | . . . . 3 7 6 6 1 Energy Gun 6 | . 14 4 6 . 5 13 5 2 Ballistic Gun 6 | . 14 10 8 15 9 . . . Special Weapon 1 | . . 5 2 . . . . . Peak Build Rating 68 | 9 8 18 35 35 60 68 68 59 Average Rating 36 | 6 7 13 28 34 47 67 60 39 On Entrance 30 | . 7 8 17 30 35 55 67 55 Naked Turns 13 | . . . . . . . . 13 Heaviest Build 76 | 15 20 23 35 38 44 45 76 60 Greatest Support 120 | 20 20 39 69 65 100 120 120 106 Greatest Overweight (x) 4 | 1 . 4 1 . . . 1 . Average Overweight (x) . | . . . . . . . . . Largest Inventory Capacity 15 | 8 10 10 15 15 15 15 15 15 Average Capacity 12 | 7 9 10 12 15 15 15 15 13 Most Carried 15 | 4 10 10 15 12 15 15 15 14 Average Carried 11 | 2 7 9 11 11 13 14 12 8 Final Capacity 15 | 8 10 10 15 15 15 15 15 5 Final Carried 15 | 4 10 10 13 11 14 15 14 3 Class Distribution -------------------- 76% | Mutant 23% | Scavenger-Mutant Dominant Class ---------------- Mutant | -10/Materials Mutant | -9/Materials Mutant | -8/Materials Mutant | -7/Factory Mutant | -7/DSF Scavenger-Mutant | -6/Factory Scavenger-Mutant | -6/Extension Mutant | -6/Cetus Resources | -11 -10 -9 -8 -7 -7 -6 -6 -6 ----------- Run | Yrd Mat Mat Mat Fac DSF Fac Ext Cet Matter Collected 2306 | 289 53 27 531 . 577 . 829 . Remotely 250 | . . . 250 . . . . . Salvage Created 2674 | 108 102 89 557 . 624 . 1194 . Parts 144 | 9 5 7 34 . 37 . 52 . Haulers Intercepted . | . . . . . . . . . Recyclers Shooed 1 | 1 . . . . . . . . Parts Field Recycled . | . . . . . . . . . Retrieved Matter . | . . . . . . . . . Parts Self-Destructed . | . . . . . . . . . Prevented . | . . . . . . . . . Kills | -11 -10 -9 -8 -7 -7 -6 -6 -6 ------- Run | Yrd Mat Mat Mat Fac DSF Fac Ext Cet Combat Hostiles Destroyed 49 | . 2 3 12 . 10 . 22 . Melee 1 | . . . . . . . 1 . Guns 26 | . 2 . 10 . 10 . 4 . Cannons 16 | . . . 1 . . . 15 . AOE 3 | . . 3 . . . . . . Classes Destroyed 13 | 2 2 1 1 . 5 . 2 . Tunneler 2 | 2 . . . . . . . . Recycler 1 | 1 . . . . . . . . Watcher 2 | . 1 . . . . . 1 . Swarmer 1 | . . . . . 1 . . . Saboteur 1 | . . . . . . . 1 . Grunt 25 | . 2 2 7 . 3 . 11 . Brawler 1 | . . . . . . . 1 . Duelist 3 | . . 1 1 . . . 1 . Sentry 10 | . . . 4 . . . 6 . Specialist 3 | . . . . . 3 . . . Hunter 3 | . . . . . 1 . 2 . Programmer 1 | . . . . . 1 . . . Heavy 1 | . . . . . 1 . . . Thug 1 | . . . . . . . 1 . Best Kill Streak 4 | 2 2 3 3 . 3 . 4 . Combat Bots Only 4 | . 2 3 3 . 3 . 4 . Max Kills in Single Turn 2 | 1 1 1 1 . 1 . 2 . Gunslinging . | . . . . . . . . . Exploded 1 | . . 1 . . . . . . Melee 1 | . . . . . . . 1 . Uniques/NPCs Destroyed . | . . . . . . . . . Combat | -11 -10 -9 -8 -7 -7 -6 -6 -6 -------- Run | Yrd Mat Mat Mat Fac DSF Fac Ext Cet Hostile Shots Fired 703 | . 23 34 86 . 137 . 270 153 Missed 246 | . 12 5 24 . 45 . 98 62 Damage Taken 8296 | . 151 474 1117 . 1832 . 2717 2005 Core 1380 | . 10 85 340 . 94 . 306 545 Absorbed by Shields 272 | . . . . . . . . 272 Core Remaining (%) 79 | 100 96 78 38 . 86 . . . Volleys Fired 242 | 10 13 39 47 . 40 . 89 4 Largest 2 | 2 2 2 2 . 2 . 2 2 Hottest 175 | 70 100 123 110 . 160 . 160 175 Shots Fired 404 | 13 25 49 79 . 79 . 152 7 Gun 247 | 13 24 23 73 . 79 . 32 3 Cannon 124 | . . . . . . . 120 4 Launcher 10 | . . 10 . . . . . . Special 23 | . 1 16 6 . . . . . Kinetic 160 | 3 12 16 16 . 57 . 56 . Thermal 187 | 10 13 20 45 . 22 . 70 7 Explosive 10 | . . 10 . . . . . . Electromagnetic 47 | . . 3 18 . . . 26 . Robot Hit Streak 33 | 3 4 9 33 . 8 . 14 5 Robot Miss Streak 3 | 3 2 3 3 . 3 . 3 1 Penetration Max . | . . . . . . . . . Secondary Targets 2 | . . . . . . . 2 . Max Gunslinging Chain 1 | . . . . . . . 1 . Shots Hit Robots 259 | 6 13 20 64 . 54 . 96 6 Core Hits 123 | 4 6 8 29 . 27 . 48 1 Critical Kills 3 | . . . . . 1 . 2 . Critical Parts Destroyed . | . . . . . . . . . Critical Strikes 12 | 1 1 . 3 . 1 . 5 1 Burn 6 | 1 1 . 3 . . . . 1 Meltdown 2 | . . . . . . . 2 . Destroy 1 | . . . . . 1 . . . Blast 2 | . . . . . . . 2 . Corrupt 1 | . . . . . . . 1 . Melee Attacks . | . . . . . . . . . Impact . | . . . . . . . . . Slashing . | . . . . . . . . . Piercing . | . . . . . . . . . Sneak Attacks . | . . . . . . . . . Combat Hostiles . | . . . . . . . . . Follow-up Attacks . | . . . . . . . . . Damage Inflicted 6006 | 76 154 444 1092 . 1040 . 3033 167 Guns 3011 | 76 154 207 1003 . 1040 . 495 36 Cannons 2603 | . . . . . . . 2472 131 Explosions 303 | . . 237 . . . . 66 . Melee . | . . . . . . . . . Ramming 17 | . . . 17 . . . . . Kinetic 2337 | 27 93 140 222 . 669 . 1186 . Thermal 2818 | 49 61 90 548 . 371 . 1532 167 Explosive 193 | . . 193 . . . . . . Electromagnetic 641 | . . 21 305 . . . 315 . Impact . | . . . . . . . . . Slashing . | . . . . . . . . . Piercing . | . . . . . . . . . Highest Corruption 1 | . . 1 . . 1 . . . Average Corruption 1 | . . 1 . . 1 . . . Corruption Purged . | . . . . . . . . . Corruption Blocked . | . . . . . . . . . Effects 6 | . . 5 . . 1 . . . Message Errors 1 | . . 1 . . . . . . Matter Fused 2 | . . 1 . . 1 . . . Heat Flow Errors 1 | . . 1 . . . . . . Data Loss (minor) 1 | . . 1 . . . . . . Misfires 1 | . . 1 . . . . . . Overload Shots . | . . . . . . . . . Overflow Damage 43 | . . 11 . . . . 16 16 Projectiles 32 | . . . . . . . 16 16 Explosions 11 | . . 11 . . . . . . Melee . | . . . . . . . . . Knockbacks 7 | . . . . . . . 7 . Impact . | . . . . . . . . . Kinetic 7 | . . . . . . . 7 . Secondary . | . . . . . . . . . Self-Inflicted Damage 77 | . . 77 . . . . . . Shots 4 | . . 4 . . . . . . Rammed . | . . . . . . . . . Targets Rammed 5 | . . . 5 . . . . . Kicked 5 | . . . 5 . . . . . Crushed . | . . . . . . . . . Highest Temperature 574 | 50 135 118 574 . 300 . 517 125 Average Temperature 108 | 17 48 17 146 . 162 . 141 55 Received Heat Transfer 1974 | . 84 150 504 . 108 . 882 246 Effects 20 | . . . 7 . 1 . 12 . Shutdowns 3 | . . . 2 . . . 1 . Energy Bleed 3 | . . . . . 1 . 2 . Interference 7 | . . . 2 . . . 5 . Matter Decay 2 | . . . 2 . . . . . Short Circuit 2 | . . . . . . . 2 . Damage (minor) 2 | . . . . . . . 2 . Damage (core) 1 | . . . 1 . . . . . Siege Activations . | . . . . . . . . . Robots Corrupted 1 | . . . 1 . . . . . Combat Hostiles 1 | . . . 1 . . . . . Parts Fried 1 | . . . . . . . 1 . Impact Corruptions . | . . . . . . . . . Robots Melted 2 | . . . . . . . 2 . Combat Hostiles 2 | . . . . . . . 2 . Parts Melted 14 | . 1 . 2 . 2 . 9 . Heat Transferred 5761 | 222 259 111 1519 . 800 . 2450 400 Parts Sabotaged 2 | . . . . . . . 2 . Parts Stolen . | . . . . . . . . . Parts Stripped . | . . . . . . . . . Power Chain Reactions 2 | . . 1 . . . . 1 . Alert | -11 -10 -9 -8 -7 -7 -6 -6 -6 ------- Run | Yrd Mat Mat Mat Fac DSF Fac Ext Cet Peak Influence 517 | 15 131 145 183 87 285 187 517 256 Initial 256 | . 9 55 . 82 60 149 91 256 Average 135 | 6 65 58 63 82 177 158 292 169 Maximum Alert Level 2 | . . . . . 1 . 2 1 Low Security (%) 77 | 100 100 100 100 100 46 100 27 70 Level 1 15 | . . . . . 53 . 45 29 Level 2 6 | . . . . . . . 27 . Level 3 . | . . . . . . . . . Level 4 . | . . . . . . . . . Level 5 . | . . . . . . . . . High Security . | . . . . . . . . . Max Security . | . . . . . . . . . Sterilizations 1 | . . . . . 1 . . . Squads Dispatched 13 | . . 1 2 . 2 1 4 3 Investigation 9 | . . 1 2 . . . 3 3 Extermination 1 | . . . . . . 1 . . Reinforcement 2 | . . . . . 2 . . . Assault 1 | . . . . . . . 1 . Garrison . | . . . . . . . . . Intercept . | . . . . . . . . . Searches Triggered . | . . . . . . . . . Construction Impeded . | . . . . . . . . . Haulers Reinforced . | . . . . . . . . . Active Scanning Responses . | . . . . . . . . . Cargo Convoy Interrupts . | . . . . . . . . . Stealth | -11 -10 -9 -8 -7 -7 -6 -6 -6 --------- Run | Yrd Mat Mat Mat Fac DSF Fac Ext Cet Distress Signals 3 | . 1 . 1 . . . . 1 Communications Jammed . | . . . . . . . . . Distress Signals . | . . . . . . . . . Times Spotted 95 | . 8 4 16 . 14 . 41 12 Peak Tracking Total 11 | . 4 3 6 . 3 1 7 11 Tactical Retreats 7 | . . . 3 . 2 . 2 . Traps | -11 -10 -9 -8 -7 -7 -6 -6 -6 ------- Run | Yrd Mat Mat Mat Fac DSF Fac Ext Cet Traps Triggered 4 | . . . . . 1 1 2 . Indirectly . | . . . . . . . . . Trap Hack Attempts . | . . . . . . . . . Triggered . | . . . . . . . . . Disarmed . | . . . . . . . . . Reprogrammed . | . . . . . . . . . Reused . | . . . . . . . . . Traps Extracted . | . . . . . . . . . Installed . | . . . . . . . . . Triggered . | . . . . . . . . . Machines | -11 -10 -9 -8 -7 -7 -6 -6 -6 ---------- Run | Yrd Mat Mat Mat Fac DSF Fac Ext Cet Machines Disabled 4 | . . 2 . . 1 . 1 . Max in Single Turn 1 | . . 1 . . 1 . 1 . Machines Repaired . | . . . . . . . . . Machines Dismantled . | . . . . . . . . . Machines Sabotaged . | . . . . . . . . . Overloaded Fab Kills . | . . . . . . . . . Hacking | -11 -10 -9 -8 -7 -7 -6 -6 -6 --------- Run | Yrd Mat Mat Mat Fac DSF Fac Ext Cet Machines Accessed 26 | . 3 4 3 1 . . 12 3 Terminals 25 | . 3 3 3 1 . . 12 3 Fabricators . | . . . . . . . . . Repair Stations . | . . . . . . . . . Recycling Units . | . . . . . . . . . Scanalyzers 1 | . . 1 . . . . . . Garrison Access . | . . . . . . . . . Total Hacks 63 | . 7 14 9 3 . . 21 9 Successful 24 | . 4 8 3 1 . . 7 1 Failed 39 | . 3 6 6 2 . . 14 8 Catastrophic 9 | . . 2 3 . . . 1 3 Database Lockouts . | . . . . . . . . . Manual 17 | . 6 9 1 . . . 1 . Terminals 60 | . 7 11 9 3 . . 21 9 Fabricators . | . . . . . . . . . Repair Stations . | . . . . . . . . . Recycling Units . | . . . . . . . . . Scanalyzers 3 | . . 3 . . . . . . Garrison Access . | . . . . . . . . . Terminal Hacks 16 | . 2 3 2 1 . . 7 1 Record 1 | . . . . . . . . 1 Open Door 7 | . . . . . . . 7 . Open DSF 1 | . . . . 1 . . . . Level Access Points 2 | . 1 1 . . . . . . Branch Access Points 1 | . . . 1 . . . . . Alert Level 2 | . . 1 1 . . . . . Locate Traps 1 | . . 1 . . . . . . Zone Layout 1 | . 1 . . . . . . . Fabricator Hacks . | . . . . . . . . . Repair Station Hacks . | . . . . . . . . . Recycling Unit Hacks . | . . . . . . . . . Scanalyzer 1 | . . 1 . . . . . . Insert Component 1 | . . 1 . . . . . . Garrison Access Hacks . | . . . . . . . . . Unauthorized Hacks 7 | . 2 4 1 . . . . . Terminals 7 | . 2 4 1 . . . . . Assimilate 3 | . 1 2 . . . . . . Botnet 4 | . 1 2 1 . . . . . Fabricators . | . . . . . . . . . Repair Stations . | . . . . . . . . . Recycling Units . | . . . . . . . . . Scanalyzers . | . . . . . . . . . Garrison Access . | . . . . . . . . . Data Cores Recovered . | . . . . . . . . . Used . | . . . . . . . . . Hacking Detections 22 | . 3 4 3 1 . . 8 3 Full Trace Events 8 | . . 1 2 . . . 2 3 Feedback Events . | . . . . . . . . . Feedback Blocked . | . . . . . . . . . Robot Schematics Acquired . | . . . . . . . . . Robots Built . | . . . . . . . . . Authchips . | . . . . . . . . . Time . | . . . . . . . . . Total Robot Build Rating . | . . . . . . . . . Part Schematics Acquired . | . . . . . . . . . Parts Built . | . . . . . . . . . Authchips . | . . . . . . . . . Time . | . . . . . . . . . Total Part Build Rating . | . . . . . . . . . Parts Repaired . | . . . . . . . . . Time . | . . . . . . . . . Parts Recycled . | . . . . . . . . . Recycled Matter . | . . . . . . . . . Retrieved Matter . | . . . . . . . . . Retrieved Components . | . . . . . . . . . Parts Scanalyzed 1 | . . 1 . . . . . . Part Schematics Acquired . | . . . . . . . . . Parts Damaged . | . . . . . . . . . Bothacking | -11 -10 -9 -8 -7 -7 -6 -6 -6 ------------ Run | Yrd Mat Mat Mat Fac DSF Fac Ext Cet Used RIF Installer . | . . . . . . . . . Robots Hacked . | . . . . . . . . . Non-combat . | . . . . . . . . . Combat . | . . . . . . . . . Robot Hacks Applied . | . . . . . . . . . Relay Couplers Released . | . . . . . . . . . Fabnet Peak Effective % . | . . . . . . . . . Robots Rewired . | . . . . . . . . . Allies Hacked . | . . . . . . . . . Hacks Repelled . | . . . . . . . . . Allies | -11 -10 -9 -8 -7 -7 -6 -6 -6 -------- Run | Yrd Mat Mat Mat Fac DSF Fac Ext Cet Total Allies 14 | . . . . . . 3 11 . Largest Group 7 | . . . . . . 3 7 . Highest-Rated Group 200 | . . . . . . 93 200 . Highest-Rated Ally 39 | . . . . . . 31 39 . Total Orders . | . . . . . . . . . Ally Attacks 137 | . . . . . . 7 130 . Total Damage 2388 | . . . . . . 131 2257 . Kills 15 | . . . . . . 1 14 . Allies Corrupted . | . . . . . . . . . Allies Melted . | . . . . . . . . . Intel | -11 -10 -9 -8 -7 -7 -6 -6 -6 ------- Run | Yrd Mat Mat Mat Fac DSF Fac Ext Cet Robot Analysis Total . | . . . . . . . . . Derelict Logs Recovered . | . . . . . . . . . Drone Launches . | . . . . . . . . . Drone Recoveries . | . . . . . . . . . Exploration | -11 -10 -9 -8 -7 -7 -6 -6 -6 ------------- Run | Yrd Mat Mat Mat Fac DSF Fac Ext Cet Turns Passed 4225 | 120 309 822 1117 20 346 388 980 123 Spaces Moved 2130 | 69 211 263 545 11 135 264 533 99 Core 31 | 3 . 1 . . . . . 27 Treads . | . . . . . . . . . Legs 2099 | 66 211 262 545 11 135 264 533 72 Wheels . | . . . . . . . . . Hover . | . . . . . . . . . Flight . | . . . . . . . . . Fastest Speed 50 | 50 120 120 120 120 120 120 120 50 Average Speed 121 | 118 120 135 121 120 124 120 120 100 Slowest Speed 250 | 120 120 250 190 120 128 120 190 120 Overloaded Moves . | . . . . . . . . . Propulsion Burnouts . | . . . . . . . . . Robots Hopped . | . . . . . . . . . Cave-ins Triggered . | . . . . . . . . . Exploration Rate (%) 35 | 5 36 22 38 1 74 7 73 61 Regions Visited 8 Branch Regions 2 Pre-discovered Areas . | . . . . . . . . . Known Exits Taken 5 | . 1 1 . 1 . 1 1 . Unknown Exits Taken 2 | 1 . . 1 . . . . . Scrap Searched . | . . . . . . . . . Spaces Dug 18 | . 1 16 1 . . . . . Terrain Destroyed 105 | . 1 57 2 . . . 45 . Melee . | . . . . . . . . . Projectile 47 | . 1 16 2 . . . 28 . AOE 58 | . . 41 . . . . 17 . Terrain Rammed . | . . . . . . . . . Walls Destroyed . | . . . . . . . . . Machines Disabled . | . . . . . . . . . Actions | -11 -10 -9 -8 -7 -7 -6 -6 -6 --------- Run | Yrd Mat Mat Mat Fac DSF Fac Ext Cet Total 3299 | 90 238 650 911 16 239 336 704 115 Wait 701 | . 4 321 267 . 11 58 39 1 Move 2122 | 68 210 262 544 10 134 263 532 99 Hop . | . . . . . . . . . Pick Up 48 | 4 6 6 14 . 10 5 3 . Fast Attach 36 | 7 . 5 4 . 6 . 14 . Attach 36 | . . 3 6 2 3 3 8 11 Detach . | . . . . . . . . . Swap 61 | 1 4 7 13 4 14 4 14 . Drop 47 | . 1 7 11 . 21 3 4 . Fire 242 | 10 13 39 47 . 40 . 89 4 Melee . | . . . . . . . . . Ram . | . . . . . . . . . Kick 5 | . . . 5 . . . . . Crush . | . . . . . . . . . Escape Stasis 1 | . . . . . . . 1 . Rewire . | . . . . . . . . . Trap . | . . . . . . . . . Miscellaneous . | . . . . . . . . . Route ------- -11/Scrapyard -10/Materials (discovered 4 exits: *Mat x3 / [*Min]) -9/Materials (discovered 3 exits: *Mat x3) -8/Materials -7/Factory -7/DSF -6/Factory -6/Extension (discovered 2 exits: [*Fac] / *Cet) -6/Cetus (discovered 1 exit: [*Arc]) History --------- Turn | Location | Event 25 | -11/Scrapyard | Discovered new exit (range 15) 121 | -11/Scrapyard | Entered Materials 306 | -10/Materials | Build established: Mutant 336 | -10/Materials | Discovered new exit (range 16) 381 | -10/Materials | Identified exit to Materials 397 | -10/Materials | Discovered new exit (range 8) 430 | -10/Materials | Entered another Materials area 430 | -9/Materials | Evolved 2 slots: Utility x2 642 | -9/Materials | Lost 5 parts (1p2n2w) 873 | -9/Materials | Identified exit to Materials 1252 | -9/Materials | Entered another Materials area 1252 | -8/Materials | Evolved 2 slots: Propulsion x2 2029 | -8/Materials | Discovered new exit (range 15) 2225 | -8/Materials | Core integrity fell below 50% 2264 | -8/Materials | Lost 5 parts (2n2u1w) 2369 | -8/Materials | Entered Factory 2369 | -7/Factory | Evolved 2 slots: Power x1, Propulsion x1 2388 | -7/Factory | Identified exit to DSF 2389 | -7/Factory | Entered DSF 2448 | -7/DSF | Discovered new exit (range 15) 2456 | -7/DSF | Additional patrols routed to DSF 2506 | -7/DSF | Lost 3 parts (2p1w) 2541 | -7/DSF | Identified exit to Factory 2652 | -7/DSF | Lost 4 parts (1p2n1w) 2711 | -7/DSF | Sterilization system engaged 2731 | -7/DSF | Ambient heat levels rising (+10) 2735 | -7/DSF | Entered Factory 2735 | -6/Factory | Evolved 2 slots: Propulsion x1, Utility x1 2965 | -6/Factory | Allied Derelicts emerged from ambush trap array 3057 | -6/Factory | Discovered new exit (range 16) 3107 | -6/Factory | Identified exit to Extension 3123 | -6/Factory | Entered Extension 3123 | -6/Extension | Accompanied by 3 allies 3191 | -6/Extension | Rescued a captive Derelict 3222 | -6/Extension | Rescued a captive Derelict 3222 | -6/Extension | Rescued a captive Derelict 3275 | -6/Extension | Lost 3 allies 3278 | -6/Extension | Rescued a captive Derelict 3285 | -6/Extension | Rescued a captive Derelict 3357 | -6/Extension | Rescued a captive Derelict 3358 | -6/Extension | Rescued a captive Derelict 3413 | -6/Extension | Rescued a captive Derelict 3512 | -6/Extension | Spotted B-75 Beast 3521 | -6/Extension | Spotted B-75 Beast 3536 | -6/Extension | Allies destroyed B-75 Beast 3552 | -6/Extension | Allies destroyed B-75 Beast 3579 | -6/Extension | Lost 7 parts (1p2n1u3w) 3588 | -6/Extension | Lost 4 allies 3609 | -6/Extension | Rescued a captive Derelict 3609 | -6/Extension | Rescued a captive Derelict 3637 | -6/Extension | Rescued a captive Derelict 3638 | -6/Extension | Rescued a captive Derelict 3702 | -6/Extension | Lost 6 allies 3823 | -6/Extension | First assault squad dispatched 3846 | -6/Extension | Lost 5 parts (2n3u) 3884 | -6/Extension | Build established: Scavenger-Mutant 4073 | -6/Extension | Discovered new exit (range 12) 4079 | -6/Extension | Discovered new exit (range 8) 4080 | -6/Extension | Lost 4 parts (1p1n1u1w) 4094 | -6/Extension | Identified exit to Cetus 4103 | -6/Extension | Entered Cetus 4119 | -6/Cetus | Spotted Cetus Guard 4119 | -6/Cetus | Spotted Cetus Guard 4123 | -6/Cetus | Spotted Cetus Guard 4133 | -6/Cetus | Spotted Cetus Guard 4201 | -6/Cetus | Lost 12 parts (1p6n3u2w) 4213 | -6/Cetus | Released all parts (7) 4217 | -6/Cetus | Core integrity fell below 50% 4222 | -6/Cetus | Core integrity fell below 20% 4224 | -6/Cetus | Discovered new exit (range 16) 4226 | -6/Cetus | Destroyed by G-50 Soldier with Heavy Laser Last Messages --------------- 04213_ Released Hardlight Generator. 04213_ Released Carbon-fiber Leg. 04213_ Released Imp. Carbon-fiber Leg. 04213_ Released Adv. Heat Sink. 04213_ Released Imp. Cooling System. 04214_ Penetrated by Slug. 04215_ Connecting with Cetus Manufacturing Controls... 04215_ Slug penetrates Cetus Manufacturing Module. 04216_ Slug penetrates Reinforced Barrier. 04216_ Penetrated by Slug. 04218_ Slug penetrates Cetus Guard. 04218_ Connecting with Cetus Terminal... 04218_ ALERT: Suspicious activity at Terminal C004. Dispatching Investigation squad. 04218_ Penetrated by Slug. 04219_ Cetus Terminal disabled. 04222_ Slug penetrates G-50 Soldier. 04222_ Slug penetrates Wall. 04224_ EXIT=FOUND 04224_ G-50 Soldier suffers critical hit (Burn). Map ----- +----------------------------------------------------+ | ??????????????????????????????????????????? | | ??????????????????????????????????????????? | | ??????????????????????????????????????????? | | ??????????????????????????????????????????? | | ??????????????????????????????????????????? | | ??????????????????????????????????????????? | | ??????????????????????????????????????????? | | ??????????????????????????????????????????? | | ??????????????????????????????????????????? | | ??????????????????????????????????????????? | | ????????????????????????? ??????????????? | | ????????????????????????? #?????????????? | | ????????????????????????? #?????????????? | | ????????????????????????? #?????????????? | | ????????????????????????? #?????????????? | | ????????????????????????? #?????????????? | | ????????????????????????? #?????????????? | | ????????????????????????# #?????????????? | | ??????###???????????????# #?????????????? | | ""? " #""???????????????# #?????????????? | | """"""#"######??????????# #?????????????? | | """""#""""""#??????????# #?????????????? | | """"""#" #??????????# #?????????????? | | " """#T "#??????????# #?????????????? | | """ "# "#??????????# #?????????????? | | ############@ #####?????????? | | + g #???? | | + g < #???? | | != + g #???? | | =!= ##########################???? | | != """# #????????????????????????????? | | ##########"""#????????????????????????????? | | ""#???????????????????????????????????????? | | ""#???????????????????????????????????????? | | ""#???????????????????????????????????????? | | ""#???????????????????????????????????????? | | ###???????????????????????????????????????? | | ""#???????????????????????????????????????? | | ""#???????????????????????????????????????? | | ""#???????????????????????????????????????? | | ###???????????????????????????????????????? | | ""#???????????????????????????????????????? | | ""#???????????????????????????????????????? | | ""#???????????????????????????????????????? | | ###???????????????????????????????????????? | | "?????????????????????????????????????????? | | ""????????????????????????????????????????? | | ??????????????????????????????????????????? | | ??????????????????????????????????????????? | | ??????????????????????????????????????????? | +----------------------------------------------------+ Best States ------------- Heat Dissipation 83 Energy Generation 45 Energy Capacity 490 Matter Stores 300 Matter Capacity 300 Sight Range 16 Robot Scan Range 15 Terrain Scan Range 16 Terrain Scan Density 10 Jamming Range 12 Additional Mass Support 9 Armor Coverage 225 Evasion (%) 55 Offensive Hacking 10 Authchip Count 1 Item Schematics ----------------- None Robot Schematics ------------------ None Fabricated ------------ Nothing Alien Tech Used ----------------- None Achievements -------------- None Challenges ------------ None Game ------ Seed BoreCobblerCycler Manual? 0 Play Time 00:52:41 Cumulative 58.0 hours Start 2025.03.11 @ 12:48:36 End 2025.03.11 @ 13:38:07 Sessions 1 Manual Loads 0 Difficulty Rogue Special Mode None Game No. 82 Rogue 82 Adventurer 0 Explorer 0 Win Type - Total 1 Types 1/0/0/0/0/0/0/0/0 Lore% 24 Gallery% 40 Achievement% 36 Wizard Run 0 Options --------- Layout 1 ASCII 1 Keyboard 0 Movement Numpad Keybinds 0 Fullscreen 1 Font 48/Smallcaps Map View 76x35 Zoom Use 0% Tactical HUD 1 Map Filters NONE Filters NONE Steam 1 RUN: eb25a892-e25f-45c2-9a0c-130363b15256